Cogmind - Beta 12 @@@ ROGUE MODE // 2023.03.13 @ 19:56:34 Player: Fleshy Vegetable Bird Result: Self-destructed Performance ------------- Evolutions (1) 500 Regions Visited (3) 600 Robots Destroyed (26) 130 Value Destroyed (442) 442 Prototype IDs (1) 20 Alien Tech Used (0) 0 Bonus (111) 111 TOTAL SCORE: 1803 Bonus ------- Follower Combat Kills 135 Friendly Fire -24 Cogmind --------- Core Integrity 133/400 Matter 230/300 Energy 280/280 System Corruption 11% Temperature Cool (0) Movement Core (500) Ox9 Location -9/Materials Parts ------- > --- POWER (1) -------- Heavy Ion Engine > --- PROPULSION (2) --- Wheel > --- UTILITY (4) ------ Improved Heat Sink Medium Storage Unit Actuator Array > --- WEAPON (2) ------- Hammer Heavy Hammer > --- INVENTORY (10) --- Light Angular Momentum Engine Hacking Suite Improved Trap Extractor (0/6) Grenade Launcher Datajack Mining Laser Peak State ------------ > --- POWER ------------ Heavy Ion Engine > --- PROPULSION ------- Wheel Wheel > --- UTILITY ---------- Improved Heat Sink Medium Storage Unit > --- WEAPON ----------- Beamcaster > --- INVENTORY -------- Reinforced Ion Engine Light Angular Momentum Engine Actuator Array Hacking Suite Improved Trap Extractor Grenade Launcher Datajack Mining Laser Hammer Heavy Hammer [Rating: 16] Favorites ----------- Power Ion Engine Engine Ion Engine Propulsion Wheel Wheel Wheel Utility Small Storage Unit Device Improved Heat Sink Storage Small Storage Unit Weapon Light Assault Rifle Energy Gun Beamcaster Ballistic Gun Light Assault Rifle Special Weapon Mining Laser Impact Weapon Hammer Build | -11 -10 -10 -9 ------- Run | Jun Mat Min Mat Slots Evolved 2 | . . . 2 Power . | . . . . Propulsion . | . . . . Utility 2 | . . . 2 Weapon . | . . . . Parts Attached 24 | 5 1 5 13 Power 4 | 1 . 1 2 Engine 4 | 1 . 1 2 Core . | . . . . Reactor . | . . . . Propulsion 9 | 2 . 3 4 Treads . | . . . . Leg . | . . . . Wheel 9 | 2 . 3 4 Hover . | . . . . Flight . | . . . . Utility 4 | 1 . . 3 Device 2 | . . . 2 Storage 2 | 1 . . 1 Processor . | . . . . Hackware . | . . . . Protection . | . . . . Artifact . | . . . . Weapon 7 | 1 1 1 4 Energy Gun 1 | . . . 1 Energy Cannon . | . . . . Ballistic Gun 3 | 1 1 1 . Ballistic Cannon . | . . . . Launcher . | . . . . Special Weapon 1 | . . . 1 Impact Weapon 2 | . . . 2 Slashing Weapon . | . . . . Piercing Weapon . | . . . . Special Melee Weapon . | . . . . Unidentified Prototypes 1 | . . . 1 Corrupted Parts 2 | . . . 2 System Corruption 10 | . . . 10 Parts Lost 11 | . . 2 9 Power 1 | . . . 1 Propulsion 6 | . . 1 5 Utility . | . . . . Weapon 4 | . . 1 3 Highest Loss Streak 5 | . . 1 5 To Critical Strikes . | . . . . Average Slot Usage (%) 77 | . 80 81 63 Engine 13 | . 14 14 11 Wheel 23 | . 28 24 19 Storage 13 | . 14 14 11 Ballistic Gun 24 | . 23 27 14 Naked Turns . | . . . . Heaviest Build 29 | 12 13 13 29 Greatest Support 20 | 20 20 20 20 Greatest Overweight (x) 6 | 1 . 1 6 Average Overweight (x) . | . . . . Largest Inventory Capacity 10 | 8 8 8 10 Average Capacity 8 | 7 8 8 9 Most Carried 10 | 5 6 8 10 Average Carried 6 | 2 3 7 7 Final Capacity 10 | 8 8 8 10 Final Carried 7 | 3 6 7 6 Class Distribution -------------------- 92% | Mutant 7% | Scavenger-Mutant Dominant Class ---------------- Mutant | -10/Materials Mutant | -10/Mines Mutant | -9/Materials Resources | -11 -10 -10 -9 ----------- Run | Jun Mat Min Mat Matter Collected 568 | 319 71 125 53 Remotely . | . . . . Salvage Created 874 | 133 260 168 313 Parts 50 | 12 12 12 14 Haulers Intercepted 2 | . 1 . 1 Recyclers Shooed . | . . . . Parts Field Recycled . | . . . . Retrieved Matter . | . . . . Parts Self-Destructed . | . . . . Prevented . | . . . . Kills | -11 -10 -10 -9 ------- Run | Jun Mat Min Mat Combat Hostiles Destroyed 12 | . 2 5 5 Melee 1 | . . . 1 Guns 11 | . 2 5 4 Classes Destroyed 9 | 2 3 2 2 Worker 3 | . . 1 2 Tunneler 5 | 4 . 1 . Hauler 2 | . 1 . 1 Recycler 2 | 1 1 . . Operator 1 | . . . 1 Watcher 1 | . 1 . . Swarmer 4 | . . 3 1 Grunt 7 | . 2 2 3 Sentry 1 | . . . 1 Best Kill Streak 5 | 3 5 5 3 Combat Bots Only 5 | . 2 5 2 Max Kills in Single Turn 1 | 1 1 1 1 Gunslinging . | . . . . Exploded . | . . . . Melee 1 | . . . 1 Uniques/NPCs Destroyed . | . . . . Combat | -11 -10 -10 -9 -------- Run | Jun Mat Min Mat Damage Taken 1230 | . 89 268 873 Core 319 | . 35 17 267 Absorbed by Shields . | . . . . Core Remaining (%) 89 | 100 . 79 . Volleys Fired 98 | 23 16 26 33 Largest 2 | 1 2 2 2 Hottest 95 | 20 40 40 95 Shots Fired 149 | 23 29 44 53 Gun 149 | 23 29 44 53 Cannon . | . . . . Launcher . | . . . . Special . | . . . . Kinetic 132 | 23 29 44 36 Thermal 17 | . . . 17 Explosive . | . . . . Electromagnetic . | . . . . Robot Hit Streak 9 | 4 9 8 5 Robot Miss Streak 3 | 2 2 2 3 Penetration Max . | . . . . Secondary Targets 2 | . . 1 1 Max Gunslinging Chain 1 | . . 1 1 Shots Hit Robots 88 | 14 19 28 27 Core Hits 42 | 6 8 14 14 Critical Kills . | . . . . Critical Parts Destroyed . | . . . . Critical Strikes 1 | . . . 1 Burn 1 | . . . 1 Melee Attacks 3 | . . . 3 Impact 3 | . . . 3 Slashing . | . . . . Piercing . | . . . . Sneak Attacks 1 | . . . 1 Combat Hostiles . | . . . . Follow-up Attacks . | . . . . Damage Inflicted 1168 | 211 208 305 444 Guns 1035 | 211 208 292 324 Cannons . | . . . . Explosions . | . . . . Melee 120 | . . . 120 Ramming 13 | . . 13 . Kinetic 909 | 211 208 292 198 Thermal 126 | . . . 126 Explosive . | . . . . Electromagnetic . | . . . . Impact 120 | . . . 120 Slashing . | . . . . Piercing . | . . . . Highest Corruption 11 | . . . 11 Average Corruption 8 | . . . 8 Corruption Purged . | . . . . Corruption Blocked . | . . . . Effects 1 | . . . 1 Message Errors 1 | . . . 1 Overload Shots . | . . . . Overflow Damage 78 | . . . 78 Projectiles . | . . . . Explosions . | . . . . Melee 78 | . . . 78 Knockbacks . | . . . . Impact . | . . . . Kinetic . | . . . . Secondary . | . . . . Self-Inflicted Damage 6 | . . 6 . Shots . | . . . . Rammed 1 | . . 1 . Targets Rammed 1 | . . 1 . Kicked . | . . . . Crushed . | . . . . Highest Temperature 347 | . 6 18 347 Average Temperature 142 | . 6 9 169 Received Heat Transfer 447 | . 48 54 345 Siege Activations . | . . . . Robots Corrupted . | . . . . Combat Hostiles . | . . . . Parts Fried 2 | . . . 2 Impact Corruptions 1 | . . . 1 Robots Melted . | . . . . Combat Hostiles . | . . . . Parts Melted . | . . . . Heat Transferred 296 | . . . 296 Parts Sabotaged . | . . . . Parts Stolen . | . . . . Parts Stripped . | . . . . Power Chain Reactions . | . . . . Missiles Intercepted . | . . . . Alert | -11 -10 -10 -9 ------- Run | Jun Mat Min Mat Peak Influence 188 | 25 120 151 188 Initial 46 | . 16 46 . Average 48 | 13 65 34 88 Maximum Alert Level . | . . . . Low Security (%) 100 | 100 100 100 100 Level 1 . | . . . . Level 2 . | . . . . Level 3 . | . . . . Level 4 . | . . . . Level 5 . | . . . . High Security . | . . . . Max Security . | . . . . Squads Dispatched 4 | . 1 . 3 Investigation 2 | . . . 2 Extermination . | . . . . Reinforcement 2 | . 1 . 1 Assault . | . . . . Garrison . | . . . . Intercept . | . . . . Searches Triggered . | . . . . Construction Impeded . | . . . . Haulers Reinforced . | . . . . Active Scanning Responses . | . . . . Cargo Convoy Interrupts . | . . . . Stealth | -11 -10 -10 -9 --------- Run | Jun Mat Min Mat Distress Signals 5 | . 2 . 3 Communications Jammed . | . . . . Distress Signals . | . . . . Times Spotted 35 | . 6 7 22 Peak Tracking Total 6 | . 3 2 6 Tactical Retreats 1 | . 1 . . Traps | -11 -10 -10 -9 ------- Run | Jun Mat Min Mat Traps Triggered 2 | . . 1 1 Indirectly . | . . . . Trap Hack Attempts . | . . . . Triggered . | . . . . Disarmed . | . . . . Reprogrammed . | . . . . Reused . | . . . . Traps Extracted . | . . . . Installed . | . . . . Triggered . | . . . . Machines | -11 -10 -10 -9 ---------- Run | Jun Mat Min Mat Machines Disabled 2 | . . 1 1 Max in Single Turn 1 | . . 1 1 Machines Repaired . | . . . . Machines Sabotaged . | . . . . Overloaded Fab Kills . | . . . . Hacking | -11 -10 -10 -9 --------- Run | Jun Mat Min Mat Machines Accessed 4 | . 1 1 2 Terminals 3 | . 1 . 2 Fabricators . | . . . . Repair Stations . | . . . . Recycling Units . | . . . . Scanalyzers . | . . . . Garrison Access . | . . . . Total Hacks 9 | . 2 1 6 Successful 4 | . . 1 3 Failed 5 | . 2 . 3 Catastrophic 1 | . . . 1 Database Lockouts . | . . . . Manual 8 | . 2 . 6 Terminals 8 | . 2 . 6 Fabricators . | . . . . Repair Stations . | . . . . Recycling Units . | . . . . Scanalyzers . | . . . . Garrison Access . | . . . . Terminal Hacks 3 | . . 1 2 Part Schematic 1 | . . . 1 Open Door 1 | . . 1 . Recall Reinforcements 1 | . . . 1 Fabricator Hacks . | . . . . Repair Station Hacks . | . . . . Recycling Unit Hacks . | . . . . Scanalyzer . | . . . . Garrison Access Hacks . | . . . . Unauthorized Hacks 1 | . . . 1 Terminals 1 | . . . 1 Botnet 1 | . . . 1 Fabricators . | . . . . Repair Stations . | . . . . Recycling Units . | . . . . Scanalyzers . | . . . . Garrison Access . | . . . . Data Cores Recovered . | . . . . Used . | . . . . Hacking Detections 3 | . 1 . 2 Full Trace Events . | . . . . Feedback Events . | . . . . Feedback Blocked . | . . . . Robot Schematics Acquired . | . . . . Robots Built . | . . . . Authchips . | . . . . Time . | . . . . Total Robot Build Rating . | . . . . Part Schematics Acquired 1 | . . . 1 Parts Built . | . . . . Authchips . | . . . . Time . | . . . . Total Part Build Rating . | . . . . Parts Repaired . | . . . . Time . | . . . . Parts Recycled . | . . . . Recycled Matter . | . . . . Retrieved Matter . | . . . . Retrieved Components . | . . . . Parts Scanalyzed . | . . . . Part Schematics Acquired . | . . . . Parts Damaged . | . . . . Bothacking | -11 -10 -10 -9 ------------ Run | Jun Mat Min Mat Used RIF Installer . | . . . . Robots Hacked . | . . . . Non-combat . | . . . . Combat . | . . . . Robot Hacks Applied . | . . . . Relay Couplers Released . | . . . . Fabnet Peak Effective % . | . . . . Robots Rewired . | . . . . Allies Hacked . | . . . . Hacks Repelled . | . . . . Allies | -11 -10 -10 -9 -------- Run | Jun Mat Min Mat Total Allies 3 | . . 3 . Largest Group 3 | . . 3 2 Highest-Rated Group 40 | . . 40 24 Highest-Rated Ally 16 | . . 16 16 Total Orders . | . . . . Ally Attacks 45 | . . 13 32 Total Damage 445 | . . 135 310 Kills 6 | . . 2 4 Allies Corrupted . | . . . . Allies Melted . | . . . . Intel | -11 -10 -10 -9 ------- Run | Jun Mat Min Mat Robot Analysis Total . | . . . . Derelict Logs Recovered 2 | . . 2 . Drone Launches . | . . . . Drone Recoveries . | . . . . Exploration | -11 -10 -10 -9 ------------- Run | Jun Mat Min Mat Turns Passed 1578 | 124 180 920 354 Spaces Moved 1154 | 70 151 690 243 Core 9 | 8 . . 1 Treads . | . . . . Legs . | . . . . Wheels 1145 | 62 151 690 242 Hover . | . . . . Flight . | . . . . Fastest Speed 50 | 50 80 80 80 Average Speed 86 | 82 80 88 84 Slowest Speed 350 | 95 80 95 350 Overloaded Moves . | . . . . Propulsion Burnouts . | . . . . Robots Hopped . | . . . . Cave-ins Triggered . | . . . . Exploration Rate (%) 41 | 3 38 97 27 Regions Visited 3 Branch Regions 1 Pre-discovered Areas . | . . . . Known Exits Taken . | . . . . Unknown Exits Taken 3 | 1 1 1 . Scrap Searched 2 | . . 2 . Spaces Dug . | . . . . Terrain Destroyed . | . . . . Melee . | . . . . Projectile . | . . . . AOE . | . . . . Terrain Rammed . | . . . . Walls Destroyed . | . . . . Machines Disabled . | . . . . Actions | -11 -10 -10 -9 --------- Run | Jun Mat Min Mat Total 1601 | 115 183 962 341 Wait 274 | . 12 230 32 Move 1151 | 69 150 689 243 Hop . | . . . . Pick Up 37 | 13 4 7 13 Fast Attach . | . . . . Attach 20 | 5 1 3 11 Detach . | . . . . Swap 4 | . . 2 2 Drop 13 | 5 . 4 4 Fire 98 | 23 16 26 33 Melee 3 | . . . 3 Ram 1 | . . 1 . Kick . | . . . . Crush . | . . . . Escape Stasis . | . . . . Rewire . | . . . . Trap . | . . . . Miscellaneous . | . . . . Route ------- -11/Junkyard -10/Materials -10/Mines (discovered 2 exits: *Mat x2) -9/Materials (discovered 3 exits: Mat x2 / [*Min]) History --------- Turn | Location | Event 38 | -11/Junkyard | Discovered new exit (range 15) 125 | -11/Junkyard | Entered Materials 270 | -10/Materials | Discovered new exit (range 14) 305 | -10/Materials | Entered Mines 315 | -10/Mines | Met a Derelict who couldn't figure out how to use a Trap Extractor 317 | -10/Mines | Build established: Mutant 484 | -10/Mines | Discovered new exit (range 7) 651 | -10/Mines | Learned location of 1 exit from Materials 689 | -10/Mines | Learned location of 1 exit from Materials 753 | -10/Mines | Assisted by bots powering up and referring to "LRC-V3" 786 | -10/Mines | Discovered new exit (range 9) 1225 | -10/Mines | Entered Materials 1225 | -9/Materials | Accompanied by 2 allies 1225 | -9/Materials | Evolved 2 slots: Utility x2 1226 | -9/Materials | Identified exit to Materials 1522 | -9/Materials | Lost 5 parts (1p2n2w) 1530 | -9/Materials | Core integrity fell below 50% 1560 | -9/Materials | Lost 3 parts (2n1w) 1562 | -9/Materials | Discovered new exit (range 12) 1567 | -9/Materials | System corruption reached 10% 1579 | -9/Materials | Self-destructed Last Messages --------------- 01555_ K-01 Serf destroyed. 01556_ U-05 Engineer lays Concrete. 01556_ K-01 Serf collects debris. 01556_ U-05 Engineer builds a Wall. 01557_ U-05 Engineer lays Concrete. 01558_ K-01 Serf cleans the Fusion Modulator. 01558_ U-05 Engineer builds a Wall. 01559_ U-05 Engineer lays Concrete. 01560_ K-01 Serf collects debris. 01560_ U-05 Engineer lays Concrete. 01562_ EXIT=FOUND 01563_ U-05 Engineer lays Concrete. 01563_ U-05 Engineer builds a Wall. 01563_ U-05 Engineer lays Concrete. 01564_ K-01 Serf collects debris. 01565_ Wheel destroyed. 01566_ Integrated Corrupted Wheel (+2). 01566_ Corrupted Wheel temporarily disabled. 01574_ U-05 Engineer lays Concrete. 01578_ U-05 Engineer builds a Wall. Map ----- +----------------------------------------------------+ | + + """ #??????????????????????????????????? | | "" # # """ #??????????????????????????????????? | | "" #![ # #??????????????????????????????????? | | "" #%= # #??????????????????????????????????? | | #[ ########??????????????????????????????????? | | ! # ######????????????????????????????????????? | | #### % ##"""#????????????????????????????????????? | | ???# = ##"T"##########+###???????????????????????? | | ???# ##??????????????????????? | | ???# "#??????????????????????? | | ???# """ """ """ T#??????????????????????? | | ???# """ """ """ "###????????????????????? | | ?### ! """ "" ="""% ## ????????????????????? | | ?# ==[ *= %!%= !* ## #????????????????????? | | ?# %% %[ %=%=%= ## #????????????????????? | | ?# % """ """ """ ! "#[###??????????????????? | | ?# """ """ """=! #%# #??????????????????? | | ?# """ """ """ ##k #??????????????????? | | ?## = *% ##??????????????????? | | ??# !**% u##??????????????????? | | ??# ############ u##??????????????????? | | ??# *#??????????#+####### u##??????????????????? | | ??# =!#?????????? ## ##??????????????????? | | ??#*=%#?????????"S """ # ##### ??????????? | | ??#%%!#????????#""" """ # g ???????? | | ?? != ??????????"" """ /@ T a < ???????? | | ?? ????????# # g ???????? | | ?# ????????# !!?# #####" "???????? | | ?# ???????#Y = !!?#######????? !"! ????????? | | ?# #??????## ?? !!??????????????????????????? | | ?## ##???????#???? ???????????????????????????? | | ??# ??????????????##???????????????????????????? | | ??? ???????????????????????????????????????????? | | ??? ???????????????????????????????????????????? | | ?????????????????????????????????????????????????? | | ?????????????????????????????????????????????????? | | ?????????????????????????????????????????????????? | | ?????????????????????????????????????????????????? | | ?????????????????????????????????????????????????? | | ?????????????????????????????????????????????????? | | ?????????????????????????????????????????????????? | | ?????????????????????????????????????????????????? | | ?????????????????????????????????????????????????? | | ?????????????????????????????????????????????????? | | ?????????????????????????????????????????????????? | | ?????????????????????????????????????????????????? | | ?????????????????????????????????????????????????? | | ?????????????????????????????????????????????????? | | ?????????????????????????????????????????????????? | | ?????????????????????????????????????????????????? | +----------------------------------------------------+ Best States ------------- Heat Dissipation 42 Energy Generation 14 Energy Capacity 280 Matter Stores 300 Matter Capacity 300 Sight Range 16 Terrain Scan Density 10 Evasion (%) 50 Item Schematics ----------------- Wheel | -9/Materials | Hacked Robot Schematics ------------------ None Fabricated ------------ Nothing Alien Tech Used ----------------- None Achievements -------------- None Challenges ------------ None Game ------ Seed AnalysisClaymoresMinigun Manual? 0 Play Time 00:13:31 Cumulative 323.4 hours Start 2023.03.13 @ 16:40:11 End 2023.03.13 @ 19:56:34 Sessions 2 Manual Loads 0 Difficulty Rogue Special Mode None Game No. 367 Rogue 367 Adventurer 0 Explorer 0 Win Type - Total 6 Types 3/1/1/1/0/0/0/0/0 Lore% 63 Gallery% 78 Achievement% 67 Wizard Run 0 Options --------- ASCII 0 Keyboard 0 Movement Numpad Keybinds 0 Fullscreen 1 Font 16/Terminus Map View 75x55 Tactical HUD 1 Map Filters NONE Filters NONE Steam 1 RUN: 06d4ed1b-306e-4bb1-ba6d-2e2bd7a63d15